Cogmind - Beta 14 @@@ ROGUE MODE // 2025.01.17 @ 10:14:41 Player: mm79 Result: Self-destructed Performance ------------- Evolutions (2) 1000 Regions Visited (5) 1000 Robots Destroyed (40) 200 Value Destroyed (912) 912 Prototype IDs (24) 480 Alien Tech Used (0) 0 Bonus (300) 300 TOTAL SCORE: 3892 Bonus ------- Aligned with FarCom 300 Cogmind --------- Core Integrity 447/550 Matter 300/300 Energy 250/250 System Corruption 0% Temperature Cool (0) Movement Rolling (155) Ox5 Location -8/Materials Parts ------- > --- POWER (1) -------- Ion Engine > --- PROPULSION (3) --- Light Treads Light Treads Wheel > --- UTILITY (4) ------ High-capacity Storage Unit Improved Terrain Scanner Terrain Scan Processor 0b10 Alert Chip > --- WEAPON (3) ------- Medium Laser Light Assault Rifle Assault Cannon > --- INVENTORY (20) --- Improved Ion Engine Improved Ion Engine Light Fission Core Light Fission Core Large Matter Pod (150) Structural Scanner Insulated Plating High-powered Tractor Beam Small Laser Particle Gun Field Laser Ion Cannon Light Assault Rifle Autogun Advanced EMP Blaster Katana Proton Bomb Trap Proton Bomb Trap Proton Bomb Trap Proton Bomb Trap Peak State ------------ > --- POWER ------------ Ion Engine > --- PROPULSION ------- Light Treads Wheel Wheel > --- UTILITY ---------- High-capacity Storage Unit Improved Terrain Scanner Terrain Scan Processor 0b10 Alert Chip > --- WEAPON ----------- Medium Laser Light Assault Rifle Advanced EMP Blaster > --- INVENTORY -------- Improved Ion Engine Light Fission Core Light Fission Core Light Treads Light Treads Large Matter Pod Structural Scanner High-powered Tractor Beam High-powered Tractor Beam Small Laser Field Laser Light Assault Rifle Light Assault Rifle Autogun Assault Cannon Katana Proton Bomb Trap Proton Bomb Trap Proton Bomb Trap Proton Bomb Trap [Rating: 26] Favorites ----------- Power Ion Engine Engine Ion Engine Propulsion Wheel Treads Light Treads Wheel Wheel Utility 0b10 Alert Chip Device Seismic Detector Storage High-capacity Storage Unit Processor 0b10 Alert Chip Protection Light Armor Plating Weapon Light Assault Rifle Energy Gun Medium Laser Ballistic Gun Light Assault Rifle Ballistic Cannon Assault Cannon Launcher Advanced EMP Blaster Special Weapon Mining Laser Build | -11 -10 -10 -10 -9 -8 ------- Run | Yrd Mat Min Exi Min Mat Slots Evolved 4 | . . . . . 4 Power . | . . . . . . Propulsion 1 | . . . . . 1 Utility 2 | . . . . . 2 Weapon 1 | . . . . . 1 Parts Attached 48 | 6 15 . 2 5 20 Power 2 | . 2 . . . . Engine 2 | . 2 . . . . Core . | . . . . . . Reactor . | . . . . . . Propulsion 8 | 2 1 . . 2 3 Treads 5 | 1 . . . 2 2 Leg . | . . . . . . Wheel 3 | 1 1 . . . 1 Hover . | . . . . . . Flight . | . . . . . . Utility 21 | 2 9 . 2 1 7 Device 12 | 1 4 . 1 . 6 Storage 4 | 1 2 . . 1 . Processor 2 | . . . 1 . 1 Hackware . | . . . . . . Protection 3 | . 3 . . . . Artifact . | . . . . . . Weapon 17 | 2 3 . . 2 10 Energy Gun 4 | 1 2 . . 1 . Energy Cannon . | . . . . . . Ballistic Gun 3 | 1 . . . . 2 Ballistic Cannon 4 | . . . . . 4 Launcher 5 | . . . . 1 4 Special Weapon 1 | . 1 . . . . Impact Weapon . | . . . . . . Slashing Weapon . | . . . . . . Piercing Weapon . | . . . . . . Special Melee Weapon . | . . . . . . Unidentified Prototypes . | . . . . . . Parts Lost 5 | . 2 . . . 3 Power 1 | . 1 . . . . Propulsion 2 | . . . . . 2 Utility 1 | . 1 . . . . Weapon 1 | . . . . . 1 Highest Loss Streak 2 | . 2 . . . 2 To Critical Strikes . | . . . . . . Average Slot Usage (%) 98 | . 96 100 100 100 99 Engine 11 | . 11 14 14 14 9 Treads 13 | . 14 14 14 14 11 Wheel 14 | . 14 14 14 14 15 Device 8 | . 13 14 7 . 8 Storage 12 | . 14 14 14 14 9 Processor 8 | . . . 6 14 17 Energy Gun 11 | . 12 14 14 13 9 Ballistic Gun 12 | . 14 14 14 14 10 Ballistic Cannon 2 | . . . . . 7 Peak Build Rating 26 | 6 10 8 14 15 26 Average Rating 13 | 4 7 8 11 14 23 On Entrance 8 | . 6 8 8 14 15 Naked Turns . | . . . . . . Heaviest Build 55 | 9 19 19 19 49 55 Greatest Support 20 | 10 10 10 10 10 20 Greatest Overweight (x) 5 | . 1 1 1 4 5 Average Overweight (x) 1 | . . 1 1 3 2 Largest Inventory Capacity 20 | 8 10 10 10 20 20 Average Capacity 14 | 7 9 10 10 18 20 Most Carried 20 | 6 10 10 10 20 20 Average Carried 12 | 4 8 10 9 14 18 Final Capacity 20 | 8 10 10 10 20 20 Final Carried 20 | 6 10 10 10 20 20 Class Distribution -------------------- 73% | Mutant 14% | Scavenger-Skirmisher 11% | Skirmisher Dominant Class ---------------- Mutant | -10/Materials Mutant | -10/Mines Mutant | -10/Exiles Mutant | -9/Mines Scavenger-Skirmisher | -8/Materials Resources | -11 -10 -10 -10 -9 -8 ----------- Run | Yrd Mat Min Exi Min Mat Matter Collected 1155 | 276 224 50 . 151 454 Remotely 248 | . . . . . 248 Salvage Created 1140 | 70 178 . . 34 858 Parts 82 | 6 10 . . 9 57 Haulers Intercepted 2 | . . . . . 2 Recyclers Shooed . | . . . . . . Parts Field Recycled . | . . . . . . Retrieved Matter . | . . . . . . Parts Self-Destructed . | . . . . . . Prevented . | . . . . . . Kills | -11 -10 -10 -10 -9 -8 ------- Run | Yrd Mat Min Exi Min Mat Combat Hostiles Destroyed 28 | . 8 . . 4 16 Guns 14 | . 8 . . . 6 Cannons 3 | . . . . . 3 AOE 11 | . . . . 4 7 Classes Destroyed 9 | 1 2 . . 1 5 Builder 4 | . . . . 1 3 Tunneler 4 | 4 . . . . . Hauler 2 | . . . . . 2 Recycler 2 | . . . . . 2 Swarmer 13 | . 6 . . 4 3 Grunt 11 | . 2 . . . 9 Brawler 1 | . . . . . 1 Sentry 2 | . . . . . 2 Hunter 1 | . . . . . 1 Best Kill Streak 10 | 4 3 . . 5 10 Combat Bots Only 5 | . 3 . . 4 5 Max Kills in Single Turn 4 | 1 1 . . 3 4 Gunslinging . | . . . . . . Exploded 3 | . . . . 3 2 Melee . | . . . . . . Uniques/NPCs Destroyed . | . . . . . . Combat | -11 -10 -10 -10 -9 -8 -------- Run | Yrd Mat Min Exi Min Mat Hostile Shots Fired 112 | . 56 . . 4 52 Missed 26 | . 11 . . 1 14 Damage Taken 1054 | . 406 . . 53 595 Core 191 | . 50 . . 38 103 Absorbed by Shields . | . . . . . . Regen/Repaired (Parts) 45 | . 45 . . . . Core Remaining (%) 82 | 100 . . . 64 . Volleys Fired 85 | 16 23 . . 3 43 Largest 3 | 2 2 . . 1 3 Hottest 114 | 70 100 . . 30 114 Shots Fired 182 | 32 45 . . 3 102 Gun 143 | 32 44 . . . 67 Cannon 26 | . . . . . 26 Launcher 12 | . . . . 3 9 Special 1 | . 1 . . . . Kinetic 100 | 16 22 . . . 62 Thermal 70 | 16 23 . . . 31 Explosive 7 | . . . . 3 4 Electromagnetic 5 | . . . . . 5 Robot Hit Streak 13 | 8 6 . . . 13 Robot Miss Streak 4 | 2 4 . . 1 3 Penetration Max . | . . . . . . Secondary Targets 3 | . 3 . . . . Max Gunslinging Chain 1 | . 1 . . . . Shots Hit Robots 114 | 20 27 . . . 67 Core Hits 69 | 7 13 . . 4 45 Critical Kills . | . . . . . . Critical Parts Destroyed 1 | . . . . . 1 Critical Strikes 8 | 1 4 . . . 3 Burn 7 | 1 4 . . . 2 Destroy 1 | . . . . . 1 Melee Attacks . | . . . . . . Impact . | . . . . . . Slashing . | . . . . . . Piercing . | . . . . . . Sneak Attacks . | . . . . . . Combat Hostiles . | . . . . . . Follow-up Attacks . | . . . . . . Damage Inflicted 2461 | 210 287 . . 179 1785 Guns 992 | 210 287 . . . 495 Cannons 347 | . . . . . 347 Explosions 1122 | . . . . 179 943 Melee . | . . . . . . Ramming . | . . . . . . Kinetic 691 | 85 75 . . . 531 Thermal 721 | 125 212 . . . 384 Explosive 610 | . . . . 179 431 Electromagnetic 439 | . . . . . 439 Impact . | . . . . . . Slashing . | . . . . . . Piercing . | . . . . . . Highest Corruption . | . . . . . . Average Corruption . | . . . . . . Corruption Purged . | . . . . . . Corruption Blocked . | . . . . . . Overload Shots . | . . . . . . Overflow Damage 42 | . . . . 13 29 Projectiles . | . . . . . . Explosions 42 | . . . . 13 29 Melee . | . . . . . . Knockbacks 7 | . . . . . 7 Impact . | . . . . . . Kinetic 6 | . . . . . 6 Secondary 1 | . . . . . 1 Self-Inflicted Damage 44 | . . . . 32 12 Shots 2 | . . . . 1 1 Rammed . | . . . . . . Targets Rammed . | . . . . . . Kicked . | . . . . . . Crushed . | . . . . . . Highest Temperature 442 | 40 83 . . . 442 Average Temperature 81 | 20 38 . . . 123 Received Heat Transfer 324 | . 72 . . . 252 Effects 2 | . . . . . 2 Shutdowns 1 | . . . . . 1 Energy Bleed 1 | . . . . . 1 Siege Activations . | . . . . . . Robots Corrupted . | . . . . . . Combat Hostiles . | . . . . . . Parts Fried . | . . . . . . Impact Corruptions . | . . . . . . Robots Melted . | . . . . . . Combat Hostiles . | . . . . . . Parts Melted 5 | . 4 . . . 1 Heat Transferred 2542 | 444 925 . . . 1173 Parts Sabotaged . | . . . . . . Parts Stolen . | . . . . . . Parts Stripped . | . . . . . . Power Chain Reactions 3 | . . . . . 3 Alert | -11 -10 -10 -10 -9 -8 ------- Run | Yrd Mat Min Exi Min Mat Peak Influence 314 | 20 137 7 . 122 314 Initial 47 | . 13 7 . . 47 Average 71 | 7 58 7 . 31 142 Maximum Alert Level 1 | . . . . . 1 Low Security (%) 95 | 100 100 100 . 100 82 Level 1 4 | . . . . . 17 Level 2 . | . . . . . . Level 3 . | . . . . . . Level 4 . | . . . . . . Level 5 . | . . . . . . High Security . | . . . . . . Max Security . | . . . . . . Squads Dispatched 5 | . 2 . . . 3 Investigation 2 | . 2 . . . . Extermination . | . . . . . . Reinforcement 3 | . . . . . 3 Assault . | . . . . . . Garrison . | . . . . . . Intercept . | . . . . . . Searches Triggered . | . . . . . . Construction Impeded 1 | . . . . . 1 Haulers Reinforced . | . . . . . . Active Scanning Responses . | . . . . . . Cargo Convoy Interrupts . | . . . . . . Stealth | -11 -10 -10 -10 -9 -8 --------- Run | Yrd Mat Min Exi Min Mat Distress Signals 4 | . . . . . 4 Communications Jammed . | . . . . . . Distress Signals . | . . . . . . Times Spotted 44 | . 15 . . 3 26 Peak Tracking Total 5 | . 4 . . 3 5 Tactical Retreats 2 | . 1 . . . 1 Traps | -11 -10 -10 -10 -9 -8 ------- Run | Yrd Mat Min Exi Min Mat Traps Triggered 3 | . 2 . . . 1 Indirectly . | . . . . . . Trap Hack Attempts . | . . . . . . Triggered . | . . . . . . Disarmed . | . . . . . . Reprogrammed . | . . . . . . Reused . | . . . . . . Traps Extracted . | . . . . . . Installed . | . . . . . . Triggered . | . . . . . . Most Traps Carried 5 | . . . . 5 5 Machines | -11 -10 -10 -10 -9 -8 ---------- Run | Yrd Mat Min Exi Min Mat Machines Disabled 3 | . . . . 2 1 Max in Single Turn 2 | . . . . 2 1 Machines Repaired . | . . . . . . Machines Dismantled . | . . . . . . Machines Sabotaged . | . . . . . . Overloaded Fab Kills . | . . . . . . Hacking | -11 -10 -10 -10 -9 -8 --------- Run | Yrd Mat Min Exi Min Mat Machines Accessed 15 | . 10 . 1 . 4 Terminals 10 | . 7 . . . 3 Fabricators . | . . . . . . Repair Stations 1 | . 1 . . . . Recycling Units 2 | . 2 . . . . Scanalyzers 1 | . . . . . 1 Garrison Access . | . . . . . . Total Hacks 35 | . 23 . 1 . 11 Successful 25 | . 18 . 1 . 6 Failed 10 | . 5 . . . 5 Catastrophic . | . . . . . . Database Lockouts . | . . . . . . Manual 29 | . 18 . 1 . 10 Terminals 28 | . 18 . . . 10 Fabricators . | . . . . . . Repair Stations 2 | . 2 . . . . Recycling Units 3 | . 3 . . . . Scanalyzers 1 | . . . . . 1 Garrison Access . | . . . . . . Terminal Hacks 4 | . 3 . 1 . . Terminal Index 1 | . 1 . . . . Locate Traps 1 | . 1 . . . . Recall Investigation 1 | . 1 . . . . Derelict Proto ID Bank 1 | . . . 1 . . Fabricator Hacks . | . . . . . . Repair Station Hacks 2 | . 2 . . . . Scan Component 1 | . 1 . . . . Repair 1 | . 1 . . . . Recycling Unit Hacks 1 | . 1 . . . . Report Inventory 1 | . 1 . . . . Scanalyzer 1 | . . . . . 1 Insert Component 1 | . . . . . 1 Garrison Access Hacks . | . . . . . . Unauthorized Hacks 17 | . 12 . . . 5 Terminals 15 | . 10 . . . 5 Assimilate 3 | . 2 . . . 1 Botnet 3 | . 2 . . . 1 Operators 1 | . 1 . . . . Skim 8 | . 5 . . . 3 Fabricators . | . . . . . . Repair Stations . | . . . . . . Recycling Units 2 | . 2 . . . . Reject 2 | . 2 . . . . Scanalyzers . | . . . . . . Garrison Access . | . . . . . . Data Cores Recovered . | . . . . . . Used . | . . . . . . Hacking Detections 12 | . 8 . . . 4 Full Trace Events . | . . . . . . Feedback Events . | . . . . . . Feedback Blocked . | . . . . . . Robot Schematics Acquired . | . . . . . . Robots Built . | . . . . . . Authchips . | . . . . . . Time . | . . . . . . Total Robot Build Rating . | . . . . . . Part Schematics Acquired . | . . . . . . Parts Built . | . . . . . . Authchips . | . . . . . . Time . | . . . . . . Total Part Build Rating . | . . . . . . Parts Repaired 1 | . 1 . . . . Time 26 | . 26 . . . . Parts Recycled . | . . . . . . Recycled Matter . | . . . . . . Retrieved Matter . | . . . . . . Retrieved Components . | . . . . . . Parts Scanalyzed . | . . . . . . Part Schematics Acquired . | . . . . . . Parts Damaged . | . . . . . . Bothacking | -11 -10 -10 -10 -9 -8 ------------ Run | Yrd Mat Min Exi Min Mat Used RIF Installer . | . . . . . . Robots Hacked . | . . . . . . Non-combat . | . . . . . . Combat . | . . . . . . Robot Hacks Applied . | . . . . . . Relay Couplers Released . | . . . . . . Fabnet Peak Effective % . | . . . . . . Robots Rewired . | . . . . . . Allies Hacked . | . . . . . . Hacks Repelled . | . . . . . . Allies | -11 -10 -10 -10 -9 -8 -------- Run | Yrd Mat Min Exi Min Mat Total Allies 2 | . 1 . . . 1 Largest Group 1 | . 1 1 1 1 1 Highest-Rated Group 10 | . 10 10 10 10 10 Highest-Rated Ally 10 | . 10 10 10 10 10 Total Orders . | . . . . . . Ally Attacks . | . . . . . . Total Damage . | . . . . . . Kills . | . . . . . . Allies Corrupted . | . . . . . . Allies Melted . | . . . . . . Intel | -11 -10 -10 -10 -9 -8 ------- Run | Yrd Mat Min Exi Min Mat Robot Analysis Total . | . . . . . . Derelict Logs Recovered 1 | . . . . 1 . Drone Launches . | . . . . . . Drone Recoveries . | . . . . . . Exploration | -11 -10 -10 -10 -9 -8 ------------- Run | Yrd Mat Min Exi Min Mat Turns Passed 2752 | 112 931 146 207 621 735 Spaces Moved 1873 | 56 595 129 209 450 434 Core 15 | 15 . . . . . Treads . | . . . . . . Legs . | . . . . . . Wheels 1858 | 41 595 129 209 450 434 Hover . | . . . . . . Flight . | . . . . . . Fastest Speed 50 | 50 80 95 95 95 110 Average Speed 107 | 71 91 95 95 130 118 Slowest Speed 155 | 80 95 95 95 140 155 Overloaded Moves . | . . . . . . Propulsion Burnouts . | . . . . . . Robots Hopped . | . . . . . . Cave-ins Triggered . | . . . . . . Exploration Rate (%) 51 | 4 86 48 41 90 39 Regions Visited 5 Branch Regions 3 Pre-discovered Areas 2 | . 2 . . . . Known Exits Taken 2 | . 1 1 . . . Unknown Exits Taken 3 | 1 . . 1 1 . Scrap Searched 3 | . . 1 . 2 . Spaces Dug . | . . . . . . Terrain Destroyed 62 | . . . . 27 35 Melee . | . . . . . . Projectile 6 | . . . . . 6 AOE 56 | . . . . 27 29 Terrain Rammed . | . . . . . . Walls Destroyed . | . . . . . . Machines Disabled . | . . . . . . Actions | -11 -10 -10 -10 -9 -8 --------- Run | Yrd Mat Min Exi Min Mat Total 2458 | 95 934 152 218 483 576 Wait 396 | 12 288 22 2 13 59 Move 1868 | 55 594 128 208 449 434 Hop . | . . . . . . Pick Up 40 | 6 9 1 2 10 12 Fast Attach 10 | 6 2 . 1 . 1 Attach 12 | . 2 . 1 1 8 Detach 4 | . . . 1 1 2 Swap 26 | . 11 . . 4 11 Drop 17 | . 5 1 3 2 6 Fire 85 | 16 23 . . 3 43 Melee . | . . . . . . Ram . | . . . . . . Kick . | . . . . . . Crush . | . . . . . . Escape Stasis . | . . . . . . Rewire . | . . . . . . Trap . | . . . . . . Miscellaneous . | . . . . . . Route ------- -11/Scrapyard -10/Materials (discovered 5 exits: *Mat x3 / *Min x2) -10/Mines (discovered 3 exits: Mat / *Exi / Sub) -10/Exiles -9/Mines -8/Materials (discovered 3 exits: *Fac x3) History --------- Turn | Location | Event 9 | -11/Scrapyard | Discovered new exit (range 15) 113 | -11/Scrapyard | Entered Materials 265 | -10/Materials | Discovered new exit (range 13) 314 | -10/Materials | Build established: Mutant 414 | -10/Materials | Discovered new exit (range 9) 433 | -10/Materials | Discovered new exit (range 16) 596 | -10/Materials | Discovered new exit (range 14) 639 | -10/Materials | Repaired Med. Laser 844 | -10/Materials | Identified exit to Mines 844 | -10/Materials | Learned location of 2 exits from Materials 889 | -10/Materials | Learned location of 2 exits from Mines 973 | -10/Materials | Learned location of Mines (-9) 991 | -10/Materials | Learned 2 Mines zone layouts 1044 | -10/Materials | Entered Mines 1044 | -10/Mines | Accompanied by 1 ally 1045 | -10/Mines | Identified exit to Subcaves 1046 | -10/Mines | Identified exit to Materials 1046 | -10/Mines | Identified exit to Exiles 1080 | -10/Mines | Assembled infested the area 1190 | -10/Mines | Entered Exiles 1190 | -10/Exiles | Accompanied by 1 ally 1220 | -10/Exiles | Met 8R-AWN 1234 | -10/Exiles | Met EX-HEX 1261 | -10/Exiles | Met EX-BIN 1271 | -10/Exiles | Aligned with FarCom system 1272 | -10/Exiles | Given EX-Vault access code 1296 | -10/Exiles | Opened EX-Vault 1303 | -10/Exiles | Found 0b10 Alert Chip 1323 | -10/Exiles | Warned to stay clear of 0b10 Research branches 1384 | -10/Exiles | Discovered new exit (range 14) 1397 | -10/Exiles | Left Exiles lab with 0b10 Alert Chip 1397 | -10/Exiles | Entered Mines 1397 | -9/Mines | Accompanied by 1 ally 1442 | -9/Mines | Learned Materials security intel 1725 | -9/Mines | Found a hidden stash of uninstalled traps 2013 | -9/Mines | Discovered new exit (range 5) 2018 | -9/Mines | Entered Materials 2018 | -8/Materials | Accompanied by 1 ally 2018 | -8/Materials | Evolved 4 slots: Propulsion x1, Utility x2, Weapon x1 2019 | -8/Materials | Identified exit to Factory 2441 | -8/Materials | Build established: Skirmisher 2613 | -8/Materials | Discovered exit to Factory (range 11) 2745 | -8/Materials | Build established: Scavenger-Skirmisher 2753 | -8/Materials | Self-destructed Last Messages --------------- 02641_ Y-45 Defender destroyed. 02647_ K-01 Serf collects debris. 02653_ U-05 Engineer builds a Wall. 02653_ K-01 Serf collects debris. 02660_ Destroyed Datajack. 02671_ Acquired Imp. Ion Engine. 02672_ Acquired 22 matter. 02720_ C-30 ARC bursts open, deploying its payload. 02720_ B-36 Bruiser unfolds itself. 02720_ G-47 Trooper unfolds itself. 02722_ G-47 Trooper destroyed. 02722_ Door malfunctions. 02728_ B-36 Bruiser destroyed. 02733_ Acquired 38 matter. 02734_ U-05 Engineer lays Concrete. 02740_ K-01 Serf collects debris. 02740_ U-05 Engineer lays Concrete. 02744_ U-05 Engineer repairs door. 02748_ W-25 Informer sends out distress signal. Map ----- +----------------------------------------------------+ | ???????????????##??? ? # """ !!!#########?### | | ??????????????#?# ?? ??# !!!############# | | ????????????????####+######+################### | | ??????????????### %= # =%#### | | ??????????????#?# < # #### | | ?????????????#??# % # " #### | | ????????????????##### #### # = #?## ## | | ????????????????##### ?### # [*% #### # | | ????????????? ?? # ??### # [ #### # | | ???????????????? ?+ #### ###+####### # | | ????????????? ???? # #### % %[ ] = # | | ????????????? ?? ? #### !! ] = ! !%+= | | ?????????????+####?## #### %]%* ]! ! !#* | | ????????????#??#?### #?# *########### # | | ?????????????? w ### ###########] %# | | ?????????????? ? ?Y ?### # ! !! # ## | | ????????????? ? #?#/ # !! + %## | | ??????????????? ?### ?##%= # ! # ## | | ?????????????##?????##?##??#! # # ## | | ?????????????????####??##?## ########### ## | | ?????Y????#???#+############ % # # = % # | | ???????????? ? ! # # # """ # =% # | | ???????????????? # w" #*! # """ + # | | ???????????"???"?? +! "" u%[ # ! """ # | | ????????????????? ?# """ #%%=# # # | | ???????????????? ? #!@""" #== # """ ####### | | ????????????????????# # # ] """ ####### | | ???????????#?????#??######## # """ ##???## | | ??????????????? #??????#?#?# # #####?# | | ?????????????????????? ? # ##########??##?# | | ????????????????????""?"? ?# ####?####?????## | | ?????????????????? ??"??? ? ?? ? ? ??? | | ?????????????????? ?""??? ?? ##??######??#?## | | ?????????????????? ? ???? # #???###?#??? ? # | | ?????????????????#?????##???#+##??#?#?#??"" ??# | | ??????????????????????????? ? ??#?#???"" ? # | | ????????????????????##??? ?? ? ??##???""? ? # | | ??????????????Y???#????#?? ? ???? ##???? ?????# | | ???????????????????????????????"?????#????" ?# | | ????????????????????????????????"??????#?"????# | | ??????????????????????????"?? ???????????????? | | ??????????????????????w????????? ?????????????? | | ??????????????????????????????????????????????? | | ?????????????????????????????????????#????????? | | ??????????????????????????????????????????????? | | ??????????????????????????????????????????????? | | ??????????????????????????????????????????????? | | ??????????????????????????????????????????????? | | ??????????????????????????????????????????????? | | ??????????????????????????????????????????????? | +----------------------------------------------------+ Best States ------------- Heat Dissipation 31 Energy Generation 10 Energy Capacity 250 Matter Stores 300 Matter Capacity 300 Sight Range 16 Terrain Scan Range 16 Terrain Scan Density 85 Armor Coverage 150 Evasion (%) 50 Recoil Reduction 2 Item Schematics ----------------- None Robot Schematics ------------------ None Fabricated ------------ Nothing Alien Tech Used ----------------- None Achievements -------------- None Challenges ------------ None Game ------ Seed TerrainSmallReconstructor Manual? 0 Play Time 00:42:48 Cumulative 26.5 hours Start 2025.01.17 @ 09:19:27 End 2025.01.17 @ 10:14:41 Sessions 1 Manual Loads 0 Difficulty Rogue Special Mode None Game No. 21 Rogue 21 Adventurer 0 Explorer 0 Win Type - Total 0 Types 0/0/0/0/0/0/0/0/0 Lore% 7 Gallery% 22 Achievement% 25 Wizard Run 0 Options --------- Layout 1 ASCII 0 Keyboard 0 Movement Mouse Keybinds 0 Fullscreen 1 Font 24/Smallcaps Map View 50x35 Zoom Use 0% Tactical HUD 1 Map Filters NONE Filters NONE Steam 0 RUN: ddcc38bf-3d8a-4fc6-a536-aa11ede84552